Workbook

Sheet GENERAL
A1: MODBUS TABLE ORGANIZATION
A2: Starting Address of the Group Registers (Dec) | B2: Starting Address of the Group Registers (Hex) | C2: System Version (Release) | D2: System Version (Build) | E2: Group Name (Text) | F2: Group Code (Hex) | G2: Group Complexity (Hex) | H2: Group Version (Hex)
A3: =HEX2DEC(B3) -> 768 | B3: 300 | E3: Device identifier
A4: =HEX2DEC(B4) -> 4096 | B4: 1000 | E4: Measures
A5: =HEX2DEC(B5) -> 4608 | B5: 1200 | E5: Settings
A6: =HEX2DEC(B6) -> 5376 | B6: 1500 | E6: Max. & Min.
A7: =HEX2DEC(B7) -> 5424 | B7: 1530 | E7: Average Measured values - Scaled
A8: 5504 | B8: 1580 | E8: Crest Factor
A9: 5888 | B9: 1700 | E9: Max. & Min.
A10: 8192 | B10: 2000 | E10: Standard Setup parameters (read & write 16 byte at once)
A11: 8704 | B11: 2200 | E11: Output option Setup parameters (read & write 24 byte at once)
A12: 28672 | B12: 7000 | E12: Harmonics
A16: MODBUS PROTOCOL DETAILS
A17: Function Code (Dec) | B17: Exception Codes (Dec) | C17: Data Encoding
A18: 3 | B18: 1, 2, 3 | C18: "Big Endian" (most significant byte first)
A19: 16 | B19: 1, 2, 3
A21: MODBUS OVER SERIAL DETAILS
A22: Physical Layer | B22: Trasmission Modes | C22: Device Addressing | D22: Baud Rates (bit/s) | E22: Data Bits | F22: Data bits trasmission sequence | G22: Parity | H22: Stop Bits
A23: standard EIA/TIA 485 (RS-485) two-wire configuration | B23: RTU | C23: 1÷247 | D23: programmable | E23: 8 | F23: Least significant bit first | G23: programmable | H23: 1
A25: MASTER/SLAVE COMMUNICATION TIMING
A26: Timer Descrtiption | B26: Timer Value (msec)
A27: Inter-character time-out | B27: Max. 20
A28: Response delay (from master request) | B28: 20÷300
A29: Delay Time (between two master trasmissions) | B29: < 20
A31: REFER ALSO TO: | B31: www.modbus.org | C31: - MODBUS over serial line specification and implementation guide V1.02
C32: - MODBUS APPLICATION PROTOCOL SPECIFICATION V1.1b
A34: NOTE: | B34: File and printed copies of this document are not subject to document change control.

Sheet DISCRETE INPUT - Bits (R)
A1: Register Number | B1: Register Address (Dec) | C1: Register Address (Hex) | D1: Dimension [bit] | E1: Description | F1: Note | G1: Read Function Codes (Dec) | H1: Data Storing (2)
E2: (no DISCRETE INPUTS availables)

Sheet COILS - Bits (R&W)
A1: Register Number | B1: Register Address (Dec) | C1: Register Address (Hex) | D1: Dimension [bit] | E1: Description | F1: Note | G1: Read Function Codes (Dec) | H1: Write Function Codes (Dec) | I1: Data Storing (2)
E2: (no COILS availables)

Sheet INPUT REGISTERS - Words (R)
A1: Register Number | B1: Register Address (Dec) | C1: Register Address (Hex) | D1: Dimension [word] | E1: Bit Position | F1: Description | G1: Type | H1: Scale | I1: Unit | J1: Range | K1: Note | L1: Read Function Code (Dec) | M1: Data Storing (2)
A2: =B2+1 -> 769 | B2: =GENERAL!A3 -> 768 | C2: =GENERAL!B3 -> 300 | D2: =SUM(D3:D3) -> 1 | F2: =GENERAL!E3 -> Device identifier
A3: =B3+1 -> 769 | B3: 768 | C3: =DEC2HEX(B3) -> 300 | D3: 1 | F3: Device identifier | G3: unsigned integer | H3: 1 | I3: - | K3: The device returns 1101h | L3: =3 -> 3
A4: =B4+1 -> 4097 | B4: =GENERAL!A4 -> 4096 | C4: =GENERAL!B4 -> 1000 | D4: =SUM(D5:D79) -> 124 | F4: =GENERAL!E4 -> Measures
A5: =B5+1 -> 4097 | B5: =B4 -> 4096 | C5: =DEC2HEX(B5) -> 1000 | D5: 2 | F5: Phase 1 : phase voltage | G5: unsigned integer | H5: 1 | I5: mV | L5: =3 -> 3
A6: =B6+1 -> 4099 | B6: =B5+D5 -> 4098 | C6: 1002 | D6: 2 | F6: Phase 2 : phase voltage | G6: unsigned integer | H6: 1 | I6: mV | L6: =3 -> 3
A7: 4101 | B7: =B6+D6 -> 4100 | C7: 1004 | D7: 2 | F7: Phase 3 : phase voltage | G7: unsigned integer | H7: 1 | I7: mV | L7: =3 -> 3
A8: 4103 | B8: 4102 | C8: 1006 | D8: 2 | F8: Phase 1 : current | G8: unsigned integer | H8: 1 | I8: mA | L8: =3 -> 3
A9: 4105 | B9: 4104 | C9: 1008 | D9: 2 | F9: Phase 2 : current | G9: unsigned integer | H9: 1 | I9: mA | L9: =3 -> 3
A10: 4107 | B10: 4106 | C10: 100A | D10: 2 | F10: Phase 3 : current | G10: unsigned integer | H10: 1 | I10: mA | L10: =3 -> 3
A11: 4109 | B11: 4108 | C11: 100C | D11: 2 | F11: Neutral current | G11: unsigned integer | H11: 1 | I11: mA | L11: =3 -> 3
A12: 4111 | B12: =B11+D11 -> 4110 | C12: 100E | D12: 2 | F12: Chained voltage : L1-L2 | G12: unsigned integer | H12: 1 | I12: mV | L12: =3 -> 3
A13: 4113 | B13: 4112 | C13: 1010 | D13: 2 | F13: Chained voltage : L2-L3 | G13: unsigned integer | H13: 1 | I13: mV | L13: =3 -> 3
A14: 4115 | B14: 4114 | C14: 1012 | D14: 2 | F14: Chained voltage : L3-L1 | G14: unsigned integer | H14: 1 | I14: mV | L14: =3 -> 3
A15: 4117 | B15: 4116 | C15: 1014 | D15: 2 | F15: 3-phase : active power | G15: unsigned integer | H15: 1, 0.01 | I15: W | K15: See Note 1 | L15: =3 -> 3
A16: 4119 | B16: 4118 | C16: 1016 | D16: 2 | F16: 3-phase : reactive power | G16: unsigned integer | H16: 1, 0.01 | I16: var | K16: See Note 1 | L16: =3 -> 3
A17: 4121 | B17: 4120 | C17: 1018 | D17: 2 | F17: 3-phase : apparent power | G17: unsigned integer | H17: 1, 0.01 | I17: VA | K17: See Note 1 | L17: =3 -> 3
A18: 4123 | B18: 4122 | C18: 101A | D18: 1 | F18: 3-phase : sign of active power | G18: unsigned integer | H18: 1 | I18: - | J18: 0, 1 | K18: 0=positive, 1=negative | L18: =3 -> 3
A19: 4124 | B19: 4123 | C19: 101B | D19: 1 | F19: 3-phase : sign of reactive power | G19: unsigned integer | H19: 1 | I19: - | J19: 0, 1 | K19: 0=positive, 1=negative | L19: =3 -> 3
A20: 4125 | B20: 4124 | C20: 101C | D20: 2 | F20: 3-phase : positive active energy | G20: unsigned integer | H20: 1, 10, 100, 1.000, 10.000, 100.000 | I20: Wh | K20: See Note 2 | L20: =3 -> 3
A21: 4127 | B21: 4126 | C21: 101E | D21: 2 | F21: 3-phase : positive reactive energy | G21: unsigned integer | H21: 1, 10, 100, 1.000, 10.000, 100.000 | I21: varh | K21: See Note 2 | L21: =3 -> 3
A22: 4129 | B22: 4128 | C22: 1020 | D22: 2 | F22: 3-phase : negative active energy | G22: unsigned integer | H22: 1, 10, 100, 1.000, 10.000, 100.000 | I22: Wh | K22: See Note 2 | L22: =3 -> 3
A23: 4131 | B23: 4130 | C23: 1022 | D23: 2 | F23: 3-phase : negative reactive energy | G23: unsigned integer | H23: 1, 10, 100, 1.000, 10.000, 100.000 | I23: varh | K23: See Note 2 | L23: =3 -> 3
A24: 4133 | B24: 4132 | C24: 1024 | D24: 1 | F24: 3-phase : power factor | G24: signed integer | H24: 0.01 | I24: - | L24: =3 -> 3
A25: 4134 | B25: 4133 | C25: 1025 | D25: 1 | F25: 3-phase : sector of power factor (cap or ind) | G25: unsigned integer | H25: 1 | I25: - | J25: 0, 1, 2 | K25: 0="PF=1", 1="ind" (L), 2="cap" (C) | L25: =3 -> 3
A26: 4135 | B26: 4134 | C26: 1026 | D26: 1 | F26: Frequency | G26: unsigned integer | H26: 0.1 | I26: Hz | L26: =3 -> 3
A27: 4136 | B27: 4135 | C27: 1027 | D27: 2 | F27: 3-phase : average power | G27: unsigned integer | H27: 1, 0.01 | I27: W | K27: See Note 1 | L27: =3 -> 3
A28: 4138 | B28: 4137 | C28: 1029 | D28: 2 | F28: 3-phase : peak maximum demand | G28: unsigned integer | H28: 1, 0.01 | I28: W | K28: See Note 1 | L28: =3 -> 3
A29: 4140 | B29: 4139 | C29: 102B | D29: 1 | F29: Time counter for average power | G29: unsigned integer | H29: 1 | I29: min | L29: =3 -> 3
A30: 4141 | B30: 4140 | C30: 102C | D30: 2 | F30: Phase 1 : active power | G30: unsigned integer | H30: 1, 0.01 | I30: W | K30: See Note 1 | L30: =3 -> 3
A31: 4143 | B31: 4142 | C31: 102E | D31: 2 | F31: Phase 2 : active power | G31: unsigned integer | H31: 1, 0.01 | I31: W | K31: See Note 1 | L31: =3 -> 3
A32: 4145 | B32: 4144 | C32: 1030 | D32: 2 | F32: Phase 3 : active power | G32: unsigned integer | H32: 1, 0.01 | I32: W | K32: See Note 1 | L32: =3 -> 3
A33: 4147 | B33: 4146 | C33: 1032 | D33: 1 | F33: Phase 1 : sign of active power | G33: unsigned integer | I33: - | J33: 0, 1 | K33: 0=positive, 1=negative | L33: =3 -> 3
A34: 4148 | B34: 4147 | C34: 1033 | D34: 1 | F34: Phase 2 : sign of active power | G34: unsigned integer | I34: - | J34: 0, 1 | K34: 0=positive, 1=negative | L34: =3 -> 3
A35: 4149 | B35: 4148 | C35: 1034 | D35: 1 | F35: Phase 3 : sign of active power | G35: unsigned integer | I35: - | J35: 0, 1 | K35: 0=positive, 1=negative | L35: =3 -> 3
A36: 4150 | B36: 4149 | C36: 1035 | D36: 2 | F36: Phase 1 : reactive power | G36: unsigned integer | H36: 1, 0.01 | I36: var | K36: See Note 1 | L36: =3 -> 3
A37: 4152 | B37: 4151 | C37: 1037 | D37: 2 | F37: Phase 2 : reactive power | G37: unsigned integer | H37: 1, 0.01 | I37: var | K37: See Note 1 | L37: =3 -> 3
A38: 4154 | B38: 4153 | C38: 1039 | D38: 2 | F38: Phase 3 : reactive power | G38: unsigned integer | H38: 1, 0.01 | I38: var | K38: See Note 1 | L38: =3 -> 3
A39: 4156 | B39: 4155 | C39: 103B | D39: 1 | F39: Phase 1 : sign of reactive power | G39: unsigned integer | I39: - | J39: 0, 1 | K39: 0=positive, 1=negative | L39: =3 -> 3
A40: 4157 | B40: 4156 | C40: 103C | D40: 1 | F40: Phase 2 : sign of reactive power | G40: unsigned integer | I40: - | J40: 0, 1 | K40: 0=positive, 1=negative | L40: =3 -> 3
A41: 4158 | B41: 4157 | C41: 103D | D41: 1 | F41: Phase 3 : sign of reactive power | G41: unsigned integer | I41: - | J41: 0, 1 | K41: 0=positive, 1=negative | L41: =3 -> 3
A42: =B42+1 -> 4159 | B42: =B41+D41 -> 4158 | C42: =DEC2HEX(B42) -> 103E | D42: 2 | F42: Phase 1 : apparent power | G42: unsigned integer | H42: 1, 0.01 | I42: VA | K42: See Note 1 | L42: =3 -> 3
A43: 4161 | B43: 4160 | C43: 1040 | D43: 2 | F43: Phase 2 : apparent power | G43: unsigned integer | H43: 1, 0.01 | I43: VA | K43: See Note 1 | L43: =3 -> 3
A44: 4163 | B44: 4162 | C44: 1042 | D44: 2 | F44: Phase 3 : apparent power | G44: unsigned integer | H44: 1, 0.01 | I44: VA | K44: See Note 1 | L44: =3 -> 3
A45: =B45+1 -> 4165 | B45: =B44+D44 -> 4164 | C45: =DEC2HEX(B45) -> 1044 | D45: 1 | F45: Phase 1 : power factor | G45: signed integer | H45: 0.01 | I45: - | L45: =3 -> 3
A46: 4166 | B46: 4165 | C46: 1045 | D46: 1 | F46: Phase 2 : power factor | G46: signed integer | H46: 0.01 | I46: - | L46: =3 -> 3
A47: 4167 | B47: 4166 | C47: 1046 | D47: 1 | F47: Phase 3 : power factor | G47: signed integer | H47: 0.01 | I47: - | L47: =3 -> 3
A48: =B48+1 -> 4168 | B48: =B47+D47 -> 4167 | C48: =DEC2HEX(B48) -> 1047 | D48: 1 | F48: Phase 1 : sector of power factor (cap or ind) | G48: unsigned integer | H48: 1 | I48: - | J48: 0, 1, 2 | K48: 0="PF=1", 1="ind" (L), 2="cap" (C) | L48: =3 -> 3
A49: 4169 | B49: 4168 | C49: 1048 | D49: 1 | F49: Phase 2 : sector of power factor (cap or ind) | G49: unsigned integer | H49: 1 | I49: - | J49: 0, 1, 2 | K49: 0="PF=1", 1="ind" (L), 2="cap" (C) | L49: =3 -> 3
A50: 4170 | B50: 4169 | C50: 1049 | D50: 1 | F50: Phase 3 : sector of power factor (cap or ind) | G50: unsigned integer | H50: 1 | I50: - | J50: 0, 1, 2 | K50: 0="PF=1", 1="ind" (L), 2="cap" (C) | L50: =3 -> 3
A51: =B51+1 -> 4171 | B51: =B50+D50 -> 4170 | C51: =DEC2HEX(B51) -> 104A | D51: 1 | F51: Phase 1 : THD V1 | G51: unsigned integer | H51: 0.1 | I51: % | K51: See Note 3 | L51: =3 -> 3
A52: =B52+1 -> 4172 | B52: =B51+D51 -> 4171 | C52: =DEC2HEX(B52) -> 104B | D52: 1 | F52: Phase 2 : THD V2 | G52: unsigned integer | H52: 0.1 | I52: % | K52: See Note 3 | L52: =3 -> 3
A53: 4173 | B53: 4172 | C53: 104C | D53: 1 | F53: Phase 3 : THD V3 | G53: unsigned integer | H53: 0.1 | I53: % | K53: See Note 3 | L53: =3 -> 3
A54: 4174 | B54: 4173 | C54: 104D | D54: 1 | F54: Phase 1 : THD I1 | G54: unsigned integer | H54: 0.1 | I54: % | L54: =3 -> 3
A55: 4175 | B55: 4174 | C55: 104E | D55: 1 | F55: Phase 2 : THD I2 | G55: unsigned integer | H55: 0.1 | I55: % | L55: =3 -> 3
A56: 4176 | B56: 4175 | C56: 104F | D56: 1 | F56: Phase 3 : THD I3 | G56: unsigned integer | H56: 0.1 | I56: % | L56: =3 -> 3
A57: 4177 | B57: 4176 | C57: 1050 | D57: 2 | F57: Phase 1 : I1 average | G57: unsigned integer | H57: 1 | I57: mA | L57: =3 -> 3
A58: =B58+1 -> 4179 | B58: =B57+D57 -> 4178 | C58: =DEC2HEX(B58) -> 1052 | D58: 2 | F58: Phase 2 : I2 average | G58: unsigned integer | H58: 1 | I58: mA | L58: =3 -> 3
A59: 4181 | B59: 4180 | C59: 1054 | D59: 2 | F59: Phase 3 : I3 average | G59: unsigned integer | H59: 1 | I59: mA | L59: =3 -> 3
A60: 4183 | B60: 4182 | C60: 1056 | D60: 2 | F60: Phase 1 : I1 peak Max. | G60: unsigned integer | H60: 1 | I60: mA | L60: =3 -> 3
A61: =B61+1 -> 4185 | B61: =B60+D60 -> 4184 | C61: =DEC2HEX(B61) -> 1058 | D61: 2 | F61: Phase 2 : I2 peak Max. | G61: unsigned integer | H61: 1 | I61: mA | L61: =3 -> 3
A62: 4187 | B62: 4186 | C62: 105A | D62: 2 | F62: Phase 3 : I3 peak Max. | G62: unsigned integer | H62: 1 | I62: mA | L62: =3 -> 3
A63: =B63+1 -> 4189 | B63: =B62+D62 -> 4188 | C63: =DEC2HEX(B63) -> 105C | D63: 2 | F63: 3-phase : I average | G63: unsigned integer | H63: 1 | I63: mA | K63: (I1+I2+I3)/3 | L63: =3 -> 3
A64: 4191 | B64: 4190 | C64: 105E | D64: 2 | F64: Phase 1 : V1 min. | G64: unsigned integer | H64: 1 | I64: mV | K64: See Note 3 | L64: =3 -> 3
A65: 4193 | B65: 4192 | C65: 1060 | D65: 2 | F65: Phase 2 : V2 min. | G65: unsigned integer | H65: 1 | I65: mV | K65: See Note 3 | L65: =3 -> 3
A66: 4195 | B66: 4194 | C66: 1062 | D66: 2 | F66: Phase 3 : V3 min. | G66: unsigned integer | H66: 1 | I66: mV | K66: See Note 3 | L66: =3 -> 3
A67: =B67+1 -> 4197 | B67: =B66+D66 -> 4196 | C67: =DEC2HEX(B67) -> 1064 | D67: 2 | F67: Phase 1 : V1 Max. | G67: unsigned integer | H67: 1 | I67: mV | K67: See Note 3 | L67: =3 -> 3
A68: 4199 | B68: 4198 | C68: 1066 | D68: 2 | F68: Phase 2 : V2 Max. | G68: unsigned integer | H68: 1 | I68: mV | K68: See Note 3 | L68: =3 -> 3
A69: 4201 | B69: 4200 | C69: 1068 | D69: 2 | F69: Phase 3 : V3 Max. | G69: unsigned integer | H69: 1 | I69: mV | K69: See Note 3 | L69: =3 -> 3
A70: =B70+1 -> 4203 | B70: =B69+D69 -> 4202 | C70: =DEC2HEX(B70) -> 106A | D70: 2 | F70: 3-phase : partial active energy | G70: unsigned integer | H70: 1, 10, 100, 1000, 10.000, 100.000 | I70: Wh | K70: See Note 2 | L70: =3 -> 3
A71: 4205 | B71: 4204 | C71: 106C | D71: 2 | F71: 3-phase : partial reactive energy | G71: unsigned integer | H71: 1, 10, 100, 1000, 10.000, 100.000 | I71: varh | K71: See Note 2 | L71: =3 -> 3
A72: =B72+1 -> 4207 | B72: =B71+D71 -> 4206 | C72: =DEC2HEX(B72) -> 106E | D72: 1 | F72: Operating timer counter | G72: unsigned integer | H72: 1 | I72: h | L72: =3 -> 3
A73: =B73+1 -> 4208 | B73: =B72+D72 -> 4207 | C73: =DEC2HEX(B73) -> 106F | D73: 1 | F73: Alarm status | G73: unsigned integer | H73: - | I73: - | J73: 0, 1 | K73: 0: No active Alarm, 1: Alarm active | L73: =3 -> 3
A74: 4209 | B74: 4208 | C74: 1070 | D74: 2 | F74: 3-phase : average active power | G74: unsigned integer | H74: 1, 0.01 | I74: W | K74: See Note 1 | L74: =3 -> 3
A75: 4211 | B75: 4210 | C75: 1072 | D75: 2 | F75: 3-phase : average reactive power | G75: unsigned integer | H75: 1, 0.01 | I75: var | K75: See Note 1 | L75: =3 -> 3
A76: 4213 | B76: 4212 | C76: 1074 | D76: 2 | F76: 3-phase : average apparent power | G76: unsigned integer | H76: 1, 0.01 | I76: VA | K76: See Note 1 | L76: =3 -> 3
A77: =B77+1 -> 4215 | B77: =B76+D76 -> 4214 | C77: =DEC2HEX(B77) -> 1076 | D77: 2 | F77: 3-phase : active PMD power | G77: unsigned integer | H77: 1, 0.01 | I77: W | K77: See Note 1 | L77: =3 -> 3
A78: 4217 | B78: 4216 | C78: 1078 | D78: 2 | F78: 3-phase : reactive PMD power | G78: unsigned integer | H78: 1, 0.01 | I78: var | K78: See Note 1 | L78: =3 -> 3
A79: 4219 | B79: 4218 | C79: 107A | D79: 2 | F79: 3-phase : apparent PMD power | G79: unsigned integer | H79: 1, 0.01 | I79: VA | K79: See Note 1 | L79: =3 -> 3
A80: =B80+1 -> 4609 | B80: =GENERAL!A5 -> 4608 | C80: =GENERAL!B5 -> 1200 | D80: =SUM(D81:D85) -> 6 | F80: =GENERAL!E5 -> Settings
A81: =B81+1 -> 4609 | B81: 4608 | C81: =DEC2HEX(B81) -> 1200 | D81: 1 | F81: Current transformer ratio (CT) | G81: unsigned integer | H81: 1 | I81: - | L81: =3 -> 3
A82: =B82+1 -> 4610 | B82: =B81+D81 -> 4609 | C82: =DEC2HEX(B82) -> 1201 | D82: 1 | F82: Voltage transformer ratio (VT) | G82: unsigned integer | H82: 0.1 | I82: - | L82: =3 -> 3
A83: =B83+1 -> 4611 | B83: =B82+D82 -> 4610 | C83: =DEC2HEX(B83) -> 1202 | D83: 2 | F83: RESERVED (returns 2D62 412Dh) | L83: 3
A84: =B84+1 -> 4613 | B84: =B83+D83 -> 4612 | C84: =DEC2HEX(B84) -> 1204 | D84: 1 | F84: Device identifier | G84: unsigned integer | H84: 1 | I84: - | K84: The device returns 1101h | L84: =3 -> 3
A85: 4614 | B85: 4613 | C85: 1205 | D85: 1 | F85: Voltages sequence diagnostic | G85: unsigned integer | H85: 1 | I85: - | J85: 0, 1, 2 | K85: 0: if single phase insertion 1: Ok 2: Error | L85: 3
A86: =B86+1 -> 5377 | B86: =GENERAL!A6 -> 5376 | C86: =GENERAL!B6 -> 1500 | D86: =SUM(D87:D110) -> 48 | F86: =GENERAL!E6 -> Max. & Min.
A87: =B87+1 -> 5377 | B87: 5376 | C87: 1500 | D87: 2 | F87: Low Positive Active Energy | G87: unsigned integer | H87: =1 -> 1 | I87: Wh | L87: =3 -> 3
A88: =B88+1 -> 5379 | B88: =B87+D87 -> 5378 | C88: =DEC2HEX(B88) -> 1502 | D88: 2 | F88: High Positive Active Energy | G88: unsigned integer | H88: =1 -> 1 | I88: MWh | L88: =3 -> 3
A89: =B89+1 -> 5381 | B89: =B88+D88 -> 5380 | C89: =DEC2HEX(B89) -> 1504 | D89: 2 | F89: Low Positive Reactive Energy | G89: unsigned integer | H89: =1 -> 1 | I89: varh | L89: =3 -> 3
A90: 5383 | B90: 5382 | C90: 1506 | D90: 2 | F90: High Positive Reactive Energy | G90: unsigned integer | H90: =1 -> 1 | I90: Mvarh | L90: =3 -> 3
A91: 5385 | B91: 5384 | C91: 1508 | D91: 2 | F91: Low Negative Active Energy | G91: unsigned integer | H91: =1 -> 1 | I91: Wh | L91: =3 -> 3
A92: 5387 | B92: 5386 | C92: 150A | D92: 2 | F92: High Negative Active Energy | G92: unsigned integer | H92: =1 -> 1 | I92: MWh | L92: =3 -> 3
A93: 5389 | B93: 5388 | C93: 150C | D93: 2 | F93: Low Negative Reactive Energy | G93: unsigned integer | H93: =1 -> 1 | I93: varh | L93: =3 -> 3
A94: 5391 | B94: 5390 | C94: 150E | D94: 2 | F94: High Negative Reactive Energy | G94: unsigned integer | H94: =1 -> 1 | I94: Mvarh | L94: =3 -> 3
A95: 5393 | B95: 5392 | C95: 1510 | D95: 2 | F95: Low Partial Active Energy | G95: unsigned integer | H95: =1 -> 1 | I95: Wh | L95: =3 -> 3
A96: 5395 | B96: 5394 | C96: 1512 | D96: 2 | F96: High Partial Active Energy | G96: unsigned integer | H96: =1 -> 1 | I96: MWh | L96: =3 -> 3
A97: 5397 | B97: 5396 | C97: 1514 | D97: 2 | F97: Low Partial Reactive Energy | G97: unsigned integer | H97: =1 -> 1 | I97: varh | L97: =3 -> 3
A98: 5399 | B98: 5398 | C98: 1516 | D98: 2 | F98: High Partial Reactive Energy | G98: unsigned integer | H98: =1 -> 1 | I98: Mvarh | L98: =3 -> 3
A99: 5401 | B99: 5400 | C99: 1518 | D99: 2 | F99: Signed Total active power | G99: signed integer | H99: 1 | I99: W | L99: =3 -> 3
A100: 5403 | B100: 5402 | C100: 151A | D100: 2 | F100: Signed Total reactive power | G100: signed integer | H100: 1 | I100: var | L100: =3 -> 3
A101: 5405 | B101: 5404 | C101: 151C | D101: 2 | F101: Signed phase1 active power | G101: signed integer | H101: 1 | I101: W | L101: =3 -> 3
A102: 5407 | B102: 5406 | C102: 151E | D102: 2 | F102: Signed phase2 active power | G102: signed integer | H102: 1 | I102: W | L102: =3 -> 3
A103: =B103+1 -> 5409 | B103: =B102+D102 -> 5408 | C103: =DEC2HEX(B103) -> 1520 | D103: 2 | F103: Signed phase3 active power | G103: signed integer | H103: 1 | I103: W | L103: =3 -> 3
A104: =B104+1 -> 5411 | B104: =B103+D103 -> 5410 | C104: =DEC2HEX(B104) -> 1522 | D104: 2 | F104: Signed phase1 reactive power | G104: signed integer | H104: 1 | I104: Var | L104: =3 -> 3
A105: 5413 | B105: 5412 | C105: 1524 | D105: 2 | F105: Signed phase2 reactive power | G105: signed integer | H105: 1 | I105: Var | L105: =3 -> 3
A106: 5415 | B106: 5414 | C106: 1526 | D106: 2 | F106: Signed phase3 reactive power | G106: signed integer | H106: 1 | I106: var | L106: =3 -> 3
A107: 5417 | B107: 5416 | C107: 1528 | D107: 2 | F107: Signed total Power Factor | G107: signed integer | H107: 0.001 | I107: - | L107: =3 -> 3
A108: 5419 | B108: 5418 | C108: 152A | D108: 2 | F108: Signed phase1 Power Factor | G108: signed integer | H108: 0.001 | I108: - | L108: =3 -> 3
A109: 5421 | B109: 5420 | C109: 152C | D109: 2 | F109: Signed phase2 Power Factor | G109: signed integer | H109: 0.001 | I109: - | L109: =3 -> 3
A110: 5423 | B110: 5422 | C110: 152E | D110: 2 | F110: Signed phase3 Power Factor | G110: signed integer | H110: 0.001 | I110: - | L110: =3 -> 3
A111: =B111+1 -> 5425 | B111: =GENERAL!A7 -> 5424 | C111: =GENERAL!B7 -> 1530 | D111: =SUM(D112:D118) -> 14 | F111: =GENERAL!E7 -> Average Measured values - Scaled
A112: =B112+1 -> 5425 | B112: 5424 | C112: =DEC2HEX(B112) -> 1530 | D112: 2 | F112: Total Apparent power | G112: unsigned integer | H112: =1 -> 1 | I112: VA | L112: =3 -> 3
A113: 5427 | B113: =B112+D112 -> 5426 | C113: 1532 | D113: 2 | F113: 3-phase : average active power | G113: unsigned integer | H113: 0.01 | I113: W | L113: =3 -> 3
A114: 5429 | B114: 5428 | C114: 1534 | D114: 2 | F114: 3-phase : average reactive power | G114: unsigned integer | H114: 0.01 | I114: var | L114: =3 -> 3
A115: 5431 | B115: 5430 | C115: 1536 | D115: 2 | F115: 3-phase : average apparent power | G115: unsigned integer | H115: 0.01 | I115: VA | L115: =3 -> 3
A116: =B116+1 -> 5433 | B116: =B115+D115 -> 5432 | C116: =DEC2HEX(B116) -> 1538 | D116: 2 | F116: 3-phase : max active power | G116: unsigned integer | H116: 0.01 | I116: W | L116: =3 -> 3
A117: 5435 | B117: 5434 | C117: 153A | D117: 2 | F117: 3-phase : max reactive power | G117: unsigned integer | H117: 0.01 | I117: var | L117: =3 -> 3
A118: 5437 | B118: 5436 | C118: 153C | D118: 2 | F118: 3-phase : max apparent power | G118: unsigned integer | H118: 0.01 | I118: VA | L118: =3 -> 3
A119: =B119+1 -> 28673 | B119: =GENERAL!A12 -> 28672 | C119: =GENERAL!B12 -> 7000 | D119: =SUM(D120:D322) -> 200 | F119: =GENERAL!E12 -> Harmonics
A120: =B120+1 -> 28673 | B120: 28672 | C120: 7000 | D120: 1 | F120: Current phase 1 - fundamental | G120: unsigned integer | H120: 0.1 | I120: % | L120: =3 -> 3
A121: =B121+1 -> 28674 | B121: =B120+D120 -> 28673 | C121: =DEC2HEX(B121) -> 7001 | D121: 1 | F121: Current phase 1 - 2nd harmonic percentage | G121: unsigned integer | H121: 0.1 | I121: % | L121: =3 -> 3
A122: =B122+1 -> 28675 | B122: =B121+D121 -> 28674 | C122: =DEC2HEX(B122) -> 7002 | D122: 1 | F122: Current phase 1 - 3rd harmonic percentage | G122: unsigned integer | H122: 0.1 | I122: % | L122: =3 -> 3
A123: 28676 | B123: 28675 | C123: 7003 | D123: 1 | F123: Current phase 1 - 4th harmonic percentage | G123: unsigned integer | H123: 0.1 | I123: % | L123: =3 -> 3
A124: 28677 | B124: 28676 | C124: 7004 | D124: 1 | F124: Current phase 1 - 5th harmonic percentage | G124: unsigned integer | H124: 0.1 | I124: % | L124: =3 -> 3
A125: =B125+1 -> 28678 | B125: =B124+D124 -> 28677 | C125: =DEC2HEX(B125) -> 7005 | D125: 1 | F125: Current phase 1 - 6th harmonic percentage | G125: unsigned integer | H125: 0.1 | I125: % | L125: =3 -> 3
A126: 28679 | B126: 28678 | C126: 7006 | D126: 1 | F126: Current phase 1 - 7th harmonic percentage | G126: unsigned integer | H126: 0.1 | I126: % | L126: =3 -> 3
A127: 28680 | B127: 28679 | C127: 7007 | D127: 1 | F127: Current phase 1 - 8th harmonic percentage | G127: unsigned integer | H127: 0.1 | I127: % | L127: =3 -> 3
A128: 28681 | B128: 28680 | C128: 7008 | D128: 1 | F128: Current phase 1 - 9th harmonic percentage | G128: unsigned integer | H128: 0.1 | I128: % | L128: =3 -> 3
A129: 28682 | B129: 28681 | C129: 7009 | D129: 1 | F129: Current phase 1 - 10th harmonic percentage | G129: unsigned integer | H129: 0.1 | I129: % | L129: =3 -> 3
A130: =B130+1 -> 28683 | B130: =B129+D129 -> 28682 | C130: =DEC2HEX(B130) -> 700A | D130: 1 | F130: Current phase 1 - 11th harmonic percentage | G130: unsigned integer | H130: 0.1 | I130: % | L130: =3 -> 3
A131: 28684 | B131: 28683 | C131: 700B | D131: 1 | F131: Current phase 1 - 12th harmonic percentage | G131: unsigned integer | H131: 0.1 | I131: % | L131: =3 -> 3
A132: 28685 | B132: 28684 | C132: 700C | D132: 1 | F132: Current phase 1 - 13th harmonic percentage | G132: unsigned integer | H132: 0.1 | I132: % | L132: =3 -> 3
A133: 28686 | B133: 28685 | C133: 700D | D133: 1 | F133: Current phase 1 - 14th harmonic percentage | G133: unsigned integer | H133: 0.1 | I133: % | L133: =3 -> 3
A134: 28687 | B134: 28686 | C134: 700E | D134: 1 | F134: Current phase 1 - 15th harmonic percentage | G134: unsigned integer | H134: 0.1 | I134: % | L134: =3 -> 3
A135: 28688 | B135: 28687 | C135: 700F | D135: 1 | F135: Current phase 1 - 16th harmonic percentage | G135: unsigned integer | H135: 0.1 | I135: % | L135: =3 -> 3
A136: 28689 | B136: 28688 | C136: 7010 | D136: 1 | F136: Current phase 1 - 17th harmonic percentage | G136: unsigned integer | H136: 0.1 | I136: % | L136: =3 -> 3
A137: 28690 | B137: 28689 | C137: 7011 | D137: 1 | F137: Current phase 1 - 18th harmonic percentage | G137: unsigned integer | H137: 0.1 | I137: % | L137: =3 -> 3
A138: 28691 | B138: 28690 | C138: 7012 | D138: 1 | F138: Current phase 1 - 19th harmonic percentage | G138: unsigned integer | H138: 0.1 | I138: % | L138: =3 -> 3
A139: 28692 | B139: 28691 | C139: 7013 | D139: 1 | F139: Current phase 1 - 20th harmonic percentage | G139: unsigned integer | H139: 0.1 | I139: % | L139: =3 -> 3
A140: 28693 | B140: 28692 | C140: 7014 | D140: 1 | F140: Current phase 1 - 21st harmonic percentage | G140: unsigned integer | H140: 0.1 | I140: % | L140: =3 -> 3
A141: 28694 | B141: 28693 | C141: 7015 | D141: 1 | F141: Current phase 1 - 22nd harmonic percentage | G141: unsigned integer | H141: 0.1 | I141: % | L141: =3 -> 3
A142: 28695 | B142: 28694 | C142: 7016 | D142: 1 | F142: Current phase 1 - 23rd harmonic percentage | G142: unsigned integer | H142: 0.1 | I142: % | L142: =3 -> 3
A143: 28696 | B143: 28695 | C143: 7017 | D143: 1 | F143: Current phase 1 - 24th harmonic percentage | G143: unsigned integer | H143: 0.1 | I143: % | L143: =3 -> 3
A144: 28697 | B144: 28696 | C144: 7018 | D144: 1 | F144: Current phase 1 - 25th harmonic percentage | G144: unsigned integer | H144: 0.1 | I144: % | L144: =3 -> 3
A145: 28698 | B145: 28697 | C145: 7019 | D145: 1 | F145: RESERVED (returns 0000h) | L145: =3 -> 3
A146: 28699 | B146: 28698 | C146: 701A | D146: 1 | F146: RESERVED (returns 0000h) | L146: =3 -> 3
A147: 28700 | B147: 28699 | C147: 701B | D147: 1 | F147: RESERVED (returns 0000h) | L147: =3 -> 3
A148: 28701 | B148: 28700 | C148: 701C | D148: 1 | F148: RESERVED (returns 0000h) | L148: =3 -> 3
A149: 28702 | B149: 28701 | C149: 701D | D149: 1 | F149: RESERVED (returns 0000h) | L149: =3 -> 3
A150: 28703 | B150: 28702 | C150: 701E | D150: 1 | F150: RESERVED (returns 0000h) | L150: =3 -> 3
A151: 28704 | B151: 28703 | C151: 701F | D151: 1 | F151: RESERVED (returns 0000h) | L151: =3 -> 3
A152: 28705 | B152: 28704 | C152: 7020 | D152: 1 | F152: RESERVED (returns 0000h) | L152: =3 -> 3
A153: 28706 | B153: 28705 | C153: 7021 | D153: 1 | F153: RESERVED (returns 0000h) | L153: =3 -> 3
A154: 28707 | B154: 28706 | C154: 7022 | D154: 1 | F154: RESERVED (returns 0000h) | L154: =3 -> 3
A155: 28708 | B155: 28707 | C155: 7023 | D155: 1 | F155: RESERVED (returns 0000h) | L155: =3 -> 3
A156: 28709 | B156: 28708 | C156: 7024 | D156: 1 | F156: RESERVED (returns 0000h) | L156: =3 -> 3
A157: 28710 | B157: 28709 | C157: 7025 | D157: 1 | F157: RESERVED (returns 0000h) | L157: =3 -> 3
A158: 28711 | B158: 28710 | C158: 7026 | D158: 1 | F158: RESERVED (returns 0000h) | L158: =3 -> 3
A159: 28712 | B159: 28711 | C159: 7027 | D159: 1 | F159: RESERVED (returns 0000h) | L159: =3 -> 3
A160: 28713 | B160: 28712 | C160: 7028 | D160: 1 | F160: RESERVED (returns 0000h) | L160: =3 -> 3
A161: 28714 | B161: 28713 | C161: 7029 | D161: 1 | F161: RESERVED (returns 0000h) | L161: =3 -> 3
A162: 28715 | B162: 28714 | C162: 702A | D162: 1 | F162: RESERVED (returns 0000h) | L162: =3 -> 3
A163: 28716 | B163: 28715 | C163: 702B | D163: 1 | F163: RESERVED (returns 0000h) | L163: =3 -> 3
A164: 28717 | B164: 28716 | C164: 702C | D164: 1 | F164: RESERVED (returns 0000h) | L164: =3 -> 3
A165: 28718 | B165: 28717 | C165: 702D | D165: 1 | F165: RESERVED (returns 0000h) | L165: =3 -> 3
A166: 28719 | B166: 28718 | C166: 702E | D166: 1 | F166: RESERVED (returns 0000h) | L166: =3 -> 3
A167: 28720 | B167: 28719 | C167: 702F | D167: 1 | F167: RESERVED (returns 0000h) | L167: =3 -> 3
A168: 28721 | B168: 28720 | C168: 7030 | D168: 1 | F168: RESERVED (returns 0000h) | L168: =3 -> 3
A169: 28722 | B169: 28721 | C169: 7031 | D169: 1 | F169: RESERVED (returns 0000h) | L169: =3 -> 3
A171: =B171+1 -> 28737 | B171: 28736 | C171: 7040 | D171: 1 | F171: Current phase 2 - fundamental | G171: unsigned integer | H171: 0.1 | I171: % | L171: =3 -> 3
A172: =B172+1 -> 28738 | B172: =B171+D171 -> 28737 | C172: =DEC2HEX(B172) -> 7041 | D172: 1 | F172: Current phase 2 - 2nd harmonic percentage | G172: unsigned integer | H172: 0.1 | I172: % | L172: =3 -> 3
A173: 28739 | B173: 28738 | C173: 7042 | D173: 1 | F173: Current phase 2 - 3rd harmonic percentage | G173: unsigned integer | H173: 0.1 | I173: % | L173: =3 -> 3
A174: 28740 | B174: 28739 | C174: 7043 | D174: 1 | F174: Current phase 2 - 4th harmonic percentage | G174: unsigned integer | H174: 0.1 | I174: % | L174: =3 -> 3
A175: 28741 | B175: 28740 | C175: 7044 | D175: 1 | F175: Current phase 2 - 5th harmonic percentage | G175: unsigned integer | H175: 0.1 | I175: % | L175: =3 -> 3
A176: 28742 | B176: 28741 | C176: 7045 | D176: 1 | F176: Current phase 2 - 6th harmonic percentage | G176: unsigned integer | H176: 0.1 | I176: % | L176: =3 -> 3
A177: 28743 | B177: 28742 | C177: 7046 | D177: 1 | F177: Current phase 2 - 7th harmonic percentage | G177: unsigned integer | H177: 0.1 | I177: % | L177: =3 -> 3
A178: 28744 | B178: 28743 | C178: 7047 | D178: 1 | F178: Current phase 2 - 8th harmonic percentage | G178: unsigned integer | H178: 0.1 | I178: % | L178: =3 -> 3
A179: 28745 | B179: 28744 | C179: 7048 | D179: 1 | F179: Current phase 2 - 9th harmonic percentage | G179: unsigned integer | H179: 0.1 | I179: % | L179: =3 -> 3
A180: 28746 | B180: 28745 | C180: 7049 | D180: 1 | F180: Current phase 2 - 10th harmonic percentage | G180: unsigned integer | H180: 0.1 | I180: % | L180: =3 -> 3
A181: 28747 | B181: 28746 | C181: 704A | D181: 1 | F181: Current phase 2 - 11th harmonic percentage | G181: unsigned integer | H181: 0.1 | I181: % | L181: =3 -> 3
A182: 28748 | B182: 28747 | C182: 704B | D182: 1 | F182: Current phase 2 - 12th harmonic percentage | G182: unsigned integer | H182: 0.1 | I182: % | L182: =3 -> 3
A183: 28749 | B183: 28748 | C183: 704C | D183: 1 | F183: Current phase 2 - 13th harmonic percentage | G183: unsigned integer | H183: 0.1 | I183: % | L183: =3 -> 3
A184: 28750 | B184: 28749 | C184: 704D | D184: 1 | F184: Current phase 2 - 14th harmonic percentage | G184: unsigned integer | H184: 0.1 | I184: % | L184: =3 -> 3
A185: 28751 | B185: 28750 | C185: 704E | D185: 1 | F185: Current phase 2 - 15th harmonic percentage | G185: unsigned integer | H185: 0.1 | I185: % | L185: =3 -> 3
A186: 28752 | B186: 28751 | C186: 704F | D186: 1 | F186: Current phase 2 - 16th harmonic percentage | G186: unsigned integer | H186: 0.1 | I186: % | L186: =3 -> 3
A187: 28753 | B187: 28752 | C187: 7050 | D187: 1 | F187: Current phase 2 - 17th harmonic percentage | G187: unsigned integer | H187: 0.1 | I187: % | L187: =3 -> 3
A188: 28754 | B188: 28753 | C188: 7051 | D188: 1 | F188: Current phase 2 - 18th harmonic percentage | G188: unsigned integer | H188: 0.1 | I188: % | L188: =3 -> 3
A189: 28755 | B189: 28754 | C189: 7052 | D189: 1 | F189: Current phase 2 - 19th harmonic percentage | G189: unsigned integer | H189: 0.1 | I189: % | L189: =3 -> 3
A190: 28756 | B190: 28755 | C190: 7053 | D190: 1 | F190: Current phase 2 - 20th harmonic percentage | G190: unsigned integer | H190: 0.1 | I190: % | L190: =3 -> 3
A191: 28757 | B191: 28756 | C191: 7054 | D191: 1 | F191: Current phase 2 - 21st harmonic percentage | G191: unsigned integer | H191: 0.1 | I191: % | L191: =3 -> 3
A192: 28758 | B192: 28757 | C192: 7055 | D192: 1 | F192: Current phase 2 - 22nd harmonic percentage | G192: unsigned integer | H192: 0.1 | I192: % | L192: =3 -> 3
A193: 28759 | B193: 28758 | C193: 7056 | D193: 1 | F193: Current phase 2 - 23rd harmonic percentage | G193: unsigned integer | H193: 0.1 | I193: % | L193: =3 -> 3
A194: 28760 | B194: 28759 | C194: 7057 | D194: 1 | F194: Current phase 2 - 24th harmonic percentage | G194: unsigned integer | H194: 0.1 | I194: % | L194: =3 -> 3
A195: 28761 | B195: 28760 | C195: 7058 | D195: 1 | F195: Current phase 2 - 25th harmonic percentage | G195: unsigned integer | H195: 0.1 | I195: % | L195: =3 -> 3
A196: 28762 | B196: 28761 | C196: 7059 | D196: 1 | F196: RESERVED (returns 0000h) | L196: =3 -> 3
A197: 28763 | B197: 28762 | C197: 705A | D197: 1 | F197: RESERVED (returns 0000h) | L197: =3 -> 3
A198: 28764 | B198: 28763 | C198: 705B | D198: 1 | F198: RESERVED (returns 0000h) | L198: =3 -> 3
A199: 28765 | B199: 28764 | C199: 705C | D199: 1 | F199: RESERVED (returns 0000h) | L199: =3 -> 3
A200: 28766 | B200: 28765 | C200: 705D | D200: 1 | F200: RESERVED (returns 0000h) | L200: =3 -> 3
A201: 28767 | B201: 28766 | C201: 705E | D201: 1 | F201: RESERVED (returns 0000h) | L201: =3 -> 3
... 538 more rows

Sheet HOLDING REGISTERS - Words (R&W)
A1: Register Number | B1: Register Address (Dec) | C1: Register Address (Hex) | D1: Dimension [word] | E1: Bit Position | F1: Description | G1: Type | H1: Scale | I1: Unit | J1: Range | K1: Note | L1: Read Function Codes (Dec) | M1: Write Function Codes (Hex) | N1: Data Storing (2)
A2: =B2+1 -> 257 | B2: =HEX2DEC(C2) -> 256 | C2: 100 | D2: =SUM(D3:D4) -> 2 | F2: Current & Voltage Transf. Ratio
A3: 257 | B3: 256 | C3: 100 | D3: 1 | F3: Write Current transformer ratio - CT | G3: unsigned integer | H3: 1 | I3: - | J3: 1 ÷ 9999 | K3: CT = I prim / I sec ex: 500 A / 5 A ® CT = 100 | L3: 3 | M3: 10
A4: 259 | B4: 258 | C4: 102 | D4: 1 | F4: Write Voltage transformer ratio - VT | G4: unsigned integer | H4: 0.1 | I4: - | J4: 10 ÷ 100 | K4: VT = V prim / V sec ex: 600 V /100 V VT = 6.00 ® WRITE 60 --- If tranformer not present VT = 1.00 ® WRITE 10 | L4: 3 | M4: 10
A5: 4097 | B5: =[1]GENERAL!A4 -> 4096 | C5: =[1]GENERAL!B4 -> 1000 | D5: =SUM(D6:D21) -> 89 | F5: =[1]GENERAL!E4 -> Measures
A6: 4208 | B6: 4207 | C6: 106F | D6: 1 | F6: Output Remote Command | G6: unsigned integer | H6: - | I6: - | J6: 0, 1, | K6: 0: Deactivate 1: Activate | L6: 3 | M6: 10
A7: =B7+1 -> 8193 | B7: =GENERAL!A10 -> 8192 | C7: =GENERAL!B10 -> 2000 | D7: =SUM(D8:D8) -> 16 | F7: =GENERAL!E10 -> Standard Setup parameters (read & write 16 byte at once)
A8: 8193 | B8: 8192 | C8: 2000 | D8: 16 | F8: Standard Setup Parameters | G8: unsigned integer | H8: - | I8: - | J8: - | K8: See Note 1
A9: 8705 | B9: =GENERAL!A11 -> 8704 | C9: =GENERAL!B11 -> 2200 | D9: =SUM(D10:D10) -> 24 | F9: =GENERAL!E11 -> Output option Setup parameters (read & write 24 byte at once)
A10: =B10+1 -> 8705 | B10: 8704 | C10: 2200 | D10: 24 | F10: Programming parameters of Pulse output | G10: unsigned integer | H10: - | I10: - | J10: - | K10: See Note 2
A11: 9217 | B11: =HEX2DEC(C11) -> 9216 | C11: 2400 | D11: =SUM(D12:D12) -> 1 | F11: Reset parameters
A12: 9217 | B12: 9216 | C12: 2400 | D12: 1 | F12: Reset Hour Meter, Maximum Powers, Maximum Voltages, Maximum Currents, Minimum Voltages, Active Partial Energy, Reactive Partial Energy | G12: unsigned integer | H12: - | I12: - | J12: - | K12: See Note 1
A13: =B13+1 -> 9729 | B13: =HEX2DEC(C13) -> 9728 | C13: 2600 | D13: =SUM(D14:D14) -> 1 | F13: Saving parameters
A14: 9729 | B14: 9728 | C14: 2600 | D14: 1 | F14: Saving in EEPROM parameters changed by Remote commands | G14: unsigned integer | H14: - | I14: - | J14: - | K14: See Note 3 | L14: 3 | M14: 10
A15: =B15+1 -> 9985 | B15: =HEX2DEC(C15) -> 9984 | C15: 2700 | D15: =SUM(D16:D16) -> 1 | F15: Enable writing
A16: 9985 | B16: 9984 | C16: 2700 | D16: 1 | F16: Enable Remote Writing Operation | G16: unsigned integer | H16: - | I16: - | J16: - | K16: See Note 3 & Note 4 | L16: 3 | M16: 10
A17: =B17+1 -> 10241 | B17: =HEX2DEC(C17) -> 10240 | C17: 2800 | D17: =SUM(D18:D18) -> 1 | F17: Restore default parameters
A18: 10241 | B18: 10240 | C18: 2800 | D18: 1 | F18: Restore default parameters | G18: unsigned integer | H18: - | I18: - | J18: - | K18: See Note 4 | L18: 3 | M18: 10
B20: Note 1 - Standard Setup Parameters
B21: Readable / Writable in a 16 WORDS format : TX: FF 03 20 00 00 10 RX: FF 03 20 | 00 00 | 00 05 | 00 00 | 00 03 | 00 0A | 00 00 | 00 00 | 00 00 | 00 01 | 00 01 | 00 00 | 00 00 | 00 03 | 00 02 | 00 01 | 00 00 The answer is in the following format : FF 03 20 W0 W1 W2 W3 W4 W5 W6 W7 W8 W9 W10 W11 W12 W13 W14 W15 The meaning of the WORDs is the following: W15,W6,W4,W3,W2,W1,W0: no meaning
B22: W14 : Measure on line 1 of custom page 0: V phase 1 1: V12 2: I phase 1 3: I Neutral 4: P 3-phase 5: Q 3-phase 6: S 3-phase 7: P phase 1 8: Q phase 1 9: S phase 1 10: PF 3-phase | F22: W13 : Measure on line 2 of custom page 0: V phase 2 1: V23 2: I phase 2 3: P 3-phase 4: Q 3-phase 5: S 3-phase 6: P phase 2 7: Q phase 2 8: S phase 2 9: Frequency 10: I phase 1 | G22: W12 : Measure on line 3 of custom page 0 => V phase 3 1 => V31 2 => I phase 3 3 => P 3-phase 4 => Q 3-phase 5 => S 3-phase 6 => P phase 3 7 => Q phase 3 8 => S phase 3 9 => P phase 1 10 => I phase 1
B23: W11 : Insertion type 0: 3N3E 1: 3-3E 2: 3-2E 3: 1N1E 4: 3N1E 5: 3-1E | F23: W10 : Average and Max. demand calculation time 0: 5 minutes 1: 8 minutes 2: 10 minutes 3: 15 minutes 4: 20 minutes 5: 30 minutes 6: 60 minutes | G23: W9 : Display contrast 0: level 0 1: level 1 2: level 2 3: level 3
B24: W8 : Backlight intensity 0: 0% 1: 30% 2: 70% 3: 100% | F24: W7 : Rated TA current 0: 5A 1: 1A | G24: W5 : Run hour meter active on 0: start on V1 1: start on P
B25: Note 2 - Output option Setup parameters
B26: Readable / Writable in a 24 WORDS format : FF 03 22 00 00 18 FF 03 30 | 00 00 | 00 00 | 00 00 | 00 00 | 00 00 | 00 00 | 00 00 | 00 00 | 00 00 | 00 00 | 00 00 | 00 00 | 00 00 | 00 00 | 00 00 | 00 00 | 00 00 | 00 00 | 00 00 | 00 00 | 00 00 | 00 00 | 00 02 | 00 01 The answer is in the following format : FF 03 30 W0 W1 W2 W3 W4 W5 W6 W7 W8 W9 W10 W11 W12 W13 W14 W15 W16 W17 W18 W19 W20 W21 W22 W23 The meaning of the WORDs is the following: W20,W9,W8,W7,W6,W5,W4,W3,W2,W1,W0 : no meaning
B27: W23 : Type of measure 0: V1 1: V2 2: V3 3: U12 4: U23 5: U31 | D27: 6: I1 7: I2 8: I3 9: Frequency 10: Active Energy 11: Reactive Energy | F27: W22 : Sign of Alarm setpoint (only for Energies) 0: "+" 1: "-" | G27: W21 : Unit of setpoint 0: X.XXX 1: XX.XX 2: XXX.X 3: X.XXX k 4: XX.XX k | I27: 5: XXX.X k 6: X.XXX M 7: XX.XX M 8: XXX.X M
B28: W19 : Alarm Setpoint 0 ÷ 9999 | F28: W18 : Alarm on Min Value or Max Value 0: Min 1: Max | G28: W17 : Relay (NO/NC) 0: NO 1: NC
B29: W16 : Hysteresis 0 % ÷ 20 % | F29: W15 : Alarm activation delay Expressede in "seconds" 0÷99 | G29: W14 : Alarm deactivation delay or Relay closing time (if Output type = Timed Remote command) Expressede in "seconds" 0÷99
B30: W13 : Pulse active on 0: Active Energy 1: Reactive Energy | F30: W12 : Pulse weight 0: 0,01 k 1: 0,1 k 2: 1,0 k 3: 10,0 k 4: 100,0 k 5: 1,0 M 6: 10,0 M | G30: W11 : Pulse duration 0: 50 ms 1: 100 ms 2: 200 ms 3: 300 ms 4: 400 ms 5: 500 ms
B31: W10 : Output type 0: Pulse out 1: Alarm out 2: Remote command 3: Timed Remote command
B32: Note 3 - Reset parameters
B33: To reset desired measurements write the following word (in binary): 0|0|0|0|0|0|0|0|b8|b7|b6|b5|b4|b3|b2|b1|b0 b0 = 1 => Reset Hour Meter b1 = 1 => Reset Maximum Powers b2 = 1 => Reset Maximum Voltages b3 = 1 => Reset Maximum Currents b4 = 1 => Reset Minimum Voltages b5 = 1 => Reset Active Partial Energy b6 = 1 => Reset Reactive Partial Energy b7 ÷ b15 = 0
B34: Note 3 - Configuration Procedure
B35: 1) "Master Unlock Key” command (write the value = 0x5AA5 in the register 0x2700)
B37: 2) Write the new Configuration (one or more registers...)
B39: 3) "Master Unlock Key” command (write the value = 0x5AA5 in the register 0x2700)
B41: 4) Save/Confirm the new Configuration (writing the value 0x000A in the register 0x2600)
B43: 5) The new Configuration is now available
B45: Note 4 - Restore default parameters
B46: 1) "Master Unlock Key” command (write the value = 0x5AA5 in the register 0x2700)
B48: 3) Return to the Default configuration (writing the value 0x000B in the register 0x2800)
B50: 4) The Default configuration has been restored
